[Event "FIDE WTC Prel-B 2022"]
[Site "Jerusalem"]
[Date "2022.11.20"]
[Round "2.13"]
[White "Rodshtein, Maxim"]
[Black "Yakubboev, Nodirbek"]
[Result "1/2-1/2"]
[ECO "E81"]
[WhiteElo "2618"]
[BlackElo "2667"]
[Annotator "TA"]
[PlyCount "62"]
[EventDate "2022.11.20"]
[EventType "team-tourn"]
[EventCountry "ISR"]
[SourceTitle "playchess.com"]
[Source "ChessBase"]
[SourceQuality "1"]
[WhiteTeam "Israel"]
[BlackTeam "Uzbekistan"]
[WhiteTeamCountry "ISR"]
[BlackTeamCountry "UZB"]
[TimeControl "2700+10"]

{[%evp 12,62,34,41,41,33,35,35,37,31,34,36,25,38,31,18,47,14,14,11,3,14,13,9,37,22,52,14,36,0,37,10,7,13,13,7,0,0,22,8,34,34,29,32,33,34,34,31,43,19,35,0,51]} 1. d4 {[%emt 0:00:03]} Nf6 {[%emt 0:00:02]} 2. c4 {[%emt 0:00:03]} g6 {[%emt 0:00:01]} 3. Nc3 {[%emt 0:00:17]} Bg7 {[%emt 0:00:01]} 4. e4 {[%emt 0:00:04]} d6 {[%emt 0:00:02]} 5. f3 {[%emt 0:00:36]} O-O {[%emt 0:00:05]} 6. Nge2 {[%emt 0:00:03][%cal Bg1e2,Be2c1,Bc1b3][%mdl 32]} c5 {[%emt 0:01:08]} 7. Be3 {[%emt 0:00:04]} Qa5 {[%emt 0:00:40] E81: King's Indian: Sämisch: 6th move deviations (including 6 Be3 c6).} 8. Nc1 {[%emt 0:00:26]} cxd4 {[%emt 0:00:01]} 9. Nb3 {[%emt 0:00:03]} Qb6 {[%emt 0:00:01] White is slightly better.} 10. Bxd4 {[%emt 0:01:37]} Qd8 {[%emt 0:00:01]} 11. Be2 {[%emt 0:01:24]} Nc6 {[%emt 0:00:02]} 12. Be3 {[%emt 0:01:29]} Be6 {[%emt 0:00:02]} 13. Rc1 {[%emt 0:04:02] [#]} Rc8 $146 {[%emt 0:00:17]} ({Predecessor:} 13... Nd7 14. O-O Nb6 15. Nd2 f5 16. exf5 gxf5 17. Kh1 Kh8 18. b3 d5 19. cxd5 Nxd5 20. Nxd5 Bxd5 {½-½ (34) Kuiper,J (2475)-Rallabandi,P (2472) ICCF email 2019}) 14. Nd5 {[%emt 0:00:59]} Nd7 {[%emt 0:00:05]} 15. Qd2 {[%emt 0:00:25]} a5 {[%emt 0:00:12]} 16. O-O {[%emt 0:03:40]} a4 {[%emt 0:00:01]} 17. Na1 {[%emt 0:00:11]} Nc5 {[%emt 0:01:27]} 18. Rfd1 {[%emt 0:01:52]} f5 {[%emt 0:07:02]} 19. exf5 {[%emt 0:05:07]} Bxf5 {[%emt 0:00:03]} 20. Kh1 {[%emt 0:05:54]} Rf7 {[%emt 0:05:30]} 21. b4 {[%emt 0:05:46]} axb3 $1 {[%emt 0:01:30]} 22. Nxb3 {[%emt 0:00:03]} b6 {[%emt 0:02:46]} 23. Nd4 {[%emt 0:01:26]} Nxd4 {[%emt 0:03:08]} 24. Bxd4 {[%emt 0:00:02]} Bxd4 {[%emt 0:00:07]} 25. Qxd4 {[%emt 0:00:03]} g5 {[%emt 0:02:25]} 26. Qe3 {[%emt 0:03:26]} h6 {[%emt 0:02:06]} 27. Rd2 {[%emt 0:00:09]} Ra8 {[%emt 0:04:56]} 28. Rcd1 {[%emt 0:00:46]} Kh7 {[%emt 0:16:09]} 29. Rb2 {[%emt 0:03:29]} Ra6 {[%emt 0:00:00]} 30. Nb4 {[%emt 0:01:19]} Ra8 {[%emt 0:00:00]} 31. Nd5 {[%emt 0:00:06]} Ra6 {[%emt 0:00:00] Weighted Error Value: White=0.09 (flawless) /Black=0.09 (flawless)} 1/2-1/2

[Event "FIDE WTC Prel-B 2022"]
[Site "Jerusalem"]
[Date "2022.11.20"]
[Round "2.14"]
[White "Sindarov, Javokhir"]
[Black "Nabaty, Tamir"]
[Result "1-0"]
[ECO "C50"]
[WhiteElo "2654"]
[BlackElo "2629"]
[Annotator "TA"]
[PlyCount "109"]
[EventDate "2022.11.20"]
[EventType "team-tourn"]
[EventCountry "ISR"]
[SourceTitle "playchess.com"]
[Source "ChessBase"]
[SourceQuality "1"]
[WhiteTeam "Uzbekistan"]
[BlackTeam "Israel"]
[WhiteTeamCountry "UZB"]
[BlackTeamCountry "ISR"]
[TimeControl "2700+10"]

{[%evp 10,109,10,4,10,0,9,7,11,13,12,0,2,5,18,7,6,0,0,0,0,0,-8,-81,29,23,46,52,57,29,25,22,21,25,33,34,28,28,25,28,33,18,16,14,57,25,22,0,14,-39,0,-23,0,0,0,0,0,0,28,10,39,44,101,88,100,86,85,94,96,75,170,162,141,132,260,257,620,613,718,704,659,645,1193,1034,1576,1554,1596,1063,2925,2976,5887,5737,29964,29964,29957,12827,6394,6390,5887,5811,29988,1677]} 1. e4 {[%emt 0:00:02]} e5 {[%emt 0:00:00]} 2. Nf3 {[%emt 0:00:02]} Nc6 {[%emt 0:00:01]} 3. Bc4 {[%emt 0:00:06]} Bc5 {[%emt 0:00:02]} 4. Nc3 {[%emt 0:00:04]} Nf6 {[%emt 0:00:03]} 5. d3 {[%emt 0:00:01]} h6 {[%emt 0:00:05]} 6. h3 {[%emt 0:00:04]} a6 {[%emt 0:00:11] C50: Hungarian Defence and Giuoco Pianissimo.} 7. Be3 {[%emt 0:00:15]} d6 {[%emt 0:00:19]} 8. Bxc5 {[%emt 0:00:33] 8.0-0 is a critical line.} dxc5 {[%emt 0:00:03] The position is equal.} 9. O-O {[%emt 0:00:24]} O-O {[%emt 0:00:13]} 10. Nd5 $5 {[%emt 0:00:06][%mdl 4] Exploring less charted territory.} Be6 {[%emt 0:01:28]} 11. Ne3 {[%emt 0:00:04] [#]} Qd6 $146 {[%emt 0:01:31]} ({Predecessor:} 11... Qd7 12. Bxe6 Qxe6 13. c3 Rad8 14. Qc2 Rd7 15. Rfd1 Rfd8 16. Rd2 Ne7 17. Nh4 Nxe4 {0-1 (52) Khairallah,R-Al Sori,M (1749) Istanbul 2012}) 12. Nh4 {[%emt 0:03:16]} g6 {[%emt 0:01:53]} 13. Bxe6 {[%emt 0:04:24]} Qxe6 {[%emt 0:00:03]} 14. f4 {[%emt 0:00:46]} exf4 {[%emt 0:02:58]} 15. Rxf4 {[%emt 0:00:49]} Rad8 {[%emt 0:05:02]} 16. b3 {[%emt 0:10:23]} (16. Qe1 $11 {keeps the balance.}) 16... Nd4 {[%emt 0:03:45]} (16... g5 $6 17. Rxf6 Qxf6 18. Ng4 Qd4+ 19. Kh1 gxh4 20. Nxh6+ Kh8 21. Nf5 $11) (16... Qe5 $1 $17 {[%cal Re5f4]} 17. g3 Nd4) 17. Rf2 {[%emt 0:02:37]} Nxe4 {[%emt 0:15:31]} 18. dxe4 {[%emt 0:00:08]} Nf5 $1 {[%emt 0:00:01][%mdl 64] Pin} 19. Qe1 {[%emt 0:00:37]} (19. exf5 $2 Rxd1+ 20. Rxd1 (20. Nxd1 $2 Qe1+ 21. Rf1 Qxh4 $19) 20... Qxe3 $19) 19... Nxh4 {[%emt 0:00:03]} 20. g3 {[%emt 0:03:35]} Rd4 $1 {[%emt 0:04:43]} 21. Ng4 {[%emt 0:06:53][%cal Be3g4,Bg4h2,Bh2f3][%mdl 32]} ({Wrong is} 21. gxh4 $2 Rxe4 22. Rf3 Re8 $19) 21... f5 $1 {[%emt 0:00:11]} 22. Nh2 {[%emt 0:01:23]} ({But not} 22. Nxh6+ Kh7 23. gxh4 Kxh6 24. exf5 Qxe1+ 25. Rxe1 Rxf5 $11) 22... Rxe4 {[%emt 0:01:20]} 23. Qf1 {[%emt 0:00:02]} Re8 {[%emt 0:00:56]} 24. gxh4 {[%emt 0:00:01]} Rxh4 {[%emt 0:00:01]} 25. Nf3 {[%emt 0:00:07]} Re4 {[%emt 0:00:02]} 26. Rd1 {[%emt 0:00:02]} Re3 {[%emt 0:03:02]} 27. Qg2 {[%emt 0:04:08]} Kh7 {[%emt 0:03:24]} 28. Qg3 {[%emt 0:00:41]} Re7 {[%emt 0:00:02]} 29. Rg2 {[%emt 0:01:18]} (29. h4 $11) 29... g5 {[%emt 0:00:11][%cal Og5g4] Strongly threatening ...g4!} (29... f4 $5 {[%cal Rf4g3]} 30. Qf2 (30. Qxf4 $2 Rf7 $19) 30... g5 $15) 30. Rf1 {[%emt 0:01:07]} f4 {[%emt 0:00:39]} 31. Qg4 {[%emt 0:00:21]} Qxg4 {[%emt 0:00:40]} 32. hxg4 {[%emt 0:00:18]} Kg6 {[%emt 0:00:22]} 33. Rd2 {[%emt 0:00:10]} Re2 {[%emt 0:00:18]} 34. Rf2 {[%emt 0:01:27]} Rxd2 {[%emt 0:00:25]} 35. Rxd2 $11 {[%emt 0:00:01][%mdl 4096] Endgame KRN-KR} b6 {[%emt 0:00:00] White now steadily converts the win.} ({Better is} 35... c4 $14) 36. Kf2 {[%emt 0:00:09]} Kf6 {[%emt 0:00:45][%cal Oh6h5]} 37. Rd8 {[%emt 0:00:29]} Re3 {[%emt 0:00:03]} 38. Rf8+ {[%emt 0:01:20]} Ke7 {[%emt 0:00:38]} 39. Rc8 {[%emt 0:00:15]} Rc3 {[%emt 0:00:22]} (39... Kd6 $16 {was worth a try.}) 40. Ne1 $18 {[%emt 0:00:08]} Kd6 {[%emt 0:00:05]} 41. Rh8 {[%emt 0:00:03]} Rh3 {[%emt 0:00:13] [#]} (41... Kd5 $16 42. Rxh6 Rg3) 42. Nf3 $1 {[%emt 0:00:04]} Kd5 $2 {[%emt 0:00:17]} (42... Rg3 43. Rxh6+ Ke7 44. Nxg5 Rxg4) 43. c4+ {[%emt 0:00:13]} Kc6 {[%emt 0:00:04]} 44. Nxg5 {[%emt 0:00:09]} Rh2+ {[%emt 0:00:04]} 45. Kf3 {[%emt 0:00:02]} Rxa2 {[%emt 0:00:04]} 46. Rxh6+ {[%emt 0:00:02]} Kd7 {[%emt 0:00:01]} 47. Kxf4 {[%emt 0:00:07]} Rb2 {[%emt 0:00:24]} 48. Rh3 {[%emt 0:00:03]} a5 {[%emt 0:00:09]} 49. Ne4 {[%emt 0:00:11] Hoping for g5.} Ke6 {[%emt 0:00:16]} 50. g5 {[%emt 0:00:01] White threatens g6 and mate.} Rb1 {[%emt 0:00:01]} 51. g6 {[%emt 0:00:18]} Rf1+ {[%emt 0:00:27]} 52. Rf3 {[%emt 0:00:01]} Rg1 {[%emt 0:00:17]} 53. Rg3 {[%emt 0:00:01]} Rf1+ {[%emt 0:00:09]} 54. Kg5 {[%emt 0:00:10]} Rf8 {[%emt 0:00:12] [#]} 55. g7 {[%emt 0:00:05] Weighted Error Value: White=0.12 (very precise) /Black=0.41} (55. Nf6 $142 $1 {[%mdl 512]} Kd6 56. g7 Rc8 57. Re3 Kc6 58. Ne8 Kb7 59. g8=Q a4 60. Qd5+ Ka7 61. Re7) 1-0

[Event "FIDE WTC Prel-B 2022"]
[Site "Jerusalem"]
[Date "2022.11.20"]
[Round "2.15"]
[White "Smirin, Ilia"]
[Black "Vokhidov, Shamsiddin"]
[Result "1/2-1/2"]
[ECO "C60"]
[WhiteElo "2596"]
[BlackElo "2568"]
[Annotator "TA"]
[PlyCount "125"]
[EventDate "2022.11.20"]
[EventType "team-tourn"]
[EventCountry "ISR"]
[SourceTitle "playchess.com"]
[Source "ChessBase"]
[SourceQuality "1"]
[WhiteTeam "Israel"]
[BlackTeam "Uzbekistan"]
[WhiteTeamCountry "ISR"]
[BlackTeamCountry "UZB"]
[TimeControl "2700+10"]

{[%evp 14,125,36,21,23,23,51,-22,33,58,50,0,14,25,16,-15,-14,-7,-8,-6,0,-37,-27,-27,-13,-23,-22,-37,-28,-47,-47,-47,-47,-113,-113,-106,-120,-188,-122,-124,-135,-137,-120,-141,-103,-143,-112,-105,-75,-93,-58,-93,-96,-105,-89,-96,-96,-86,-27,-27,-26,-26,-26,-26,-26,-26,-26,-26,-27,-27,-27,-27,0,-27,-27,-27,-27,-27,-27,-27,-25,-27,0,-27,0,-27,-27,-27,0,-27,-19,-27,-27,-27,-27,-27,0,-27,-27,-27,-27,-27,-27,-27,-27,-27,-27,-27,0,-33,0,-34,-34,-41]} 1. e4 {[%emt 0:00:03]} e5 {[%emt 0:00:14]} 2. Nf3 {[%emt 0:00:08]} Nc6 {[%emt 0:00:01]} 3. Bb5 {[%emt 0:00:16]} Nge7 {[%emt 0:00:02]} 4. O-O {[%emt 0:00:16]} g6 {[%emt 0:00:06]} 5. c3 {[%emt 0:00:32]} a6 {[%emt 0:00:06]} 6. Ba4 {[%emt 0:00:06]} Bg7 {[%emt 0:00:04]} 7. d4 {[%emt 0:00:04]} exd4 {[%emt 0:00:04]} 8. cxd4 {[%emt 0:00:04]} b5 {[%emt 0:00:02] C60: Ruy Lopez: Unusual Black 3rd moves and 3...g6.} 9. Bc2 {[%emt 0:01:29]} d5 {[%emt 0:00:03]} 10. e5 {[%emt 0:00:53] [#]} (10. exd5 $14 Qxd5 11. Nc3) 10... f6 $146 {[%emt 0:01:30]} (10... Bg4 $11) ({Predecessor:} 10... O-O 11. Nbd2 f6 12. Re1 fxe5 13. dxe5 Qe8 14. h3 Qf7 15. Qe2 h6 16. b3 Nb4 {0-1 (74) Firat,B (2405)-Delchev,A (2622) Plovdiv 2012}) 11. exf6 $14 {[%emt 0:01:01]} Bxf6 {[%emt 0:00:01]} 12. Bg5 {[%emt 0:01:41]} ({White should try} 12. h3 $14) 12... Qd6 {[%emt 0:01:54]} 13. Bxf6 {[%emt 0:00:13]} Qxf6 {[%emt 0:00:01]} 14. Ne5 {[%emt 0:01:07] Prevents Bg4.} Nxe5 {[%emt 0:05:47]} 15. dxe5 {[%emt 0:00:02]} Qxe5 {[%emt 0:00:02]} 16. Re1 {[%emt 0:05:44]} Qd6 {[%emt 0:00:36]} 17. Nc3 {[%emt 0:00:56]} O-O {[%emt 0:01:09]} 18. Bb3 {[%emt 0:00:04][%cal Rc3d5]} c6 {[%emt 0:03:44]} 19. Ne4 $1 {[%emt 0:00:15] Inhibits Qf6.} Qe5 {[%emt 0:03:48]} 20. Qd2 {[%emt 0:00:28]} Nf5 {[%emt 0:02:37]} 21. Rad1 {[%emt 0:03:17]} Ra7 {[%emt 0:02:18]} 22. Qc1 {[%emt 0:01:45]} Kh8 {[%emt 0:03:18]} (22... Nd4 $2 23. Qc3 $16 (23. Qc5 Re7 $16)) 23. Qc5 {[%emt 0:01:29]} (23. Ng5 $15 Qf6 24. Nf3) 23... Re7 $17 {[%emt 0:01:03]} 24. Ng3 {[%emt 0:00:50]} Qd6 {[%emt 0:02:12]} ({Don't play} 24... Qxe1+ $6 25. Rxe1 Rxe1+ 26. Nf1 $11) 25. Qc3+ {[%emt 0:01:00] [#]} (25. Qb6 $17 {might work better.}) 25... Qf6 {[%emt 0:03:24]} (25... d4 $1 $19 {[%cal Rd4c3]} 26. Qd2 (26. Rxe7 $2 dxc3 27. Rxd6 cxb2 $19) 26... Rxe1+ 27. Rxe1 Nxg3 28. hxg3 c5) 26. Qc5 {[%emt 0:01:05]} Rxe1+ {[%emt 0:15:24]} 27. Rxe1 {[%emt 0:00:01]} Nd4 {[%emt 0:00:00]} 28. f3 {[%emt 0:00:58]} a5 {[%emt 0:00:00]} 29. Bc2 {[%emt 0:04:54]} Nxc2 {[%emt 0:00:00]} 30. Qxc2 {[%emt 0:00:02]} Bd7 {[%emt 0:00:00]} 31. Qc5 {[%emt 0:00:46]} Kg7 {[%emt 0:00:00]} 32. Re7+ {[%emt 0:01:41]} Rf7 {[%emt 0:00:00]} 33. Re2 {[%emt 0:00:01]} a4 {[%emt 0:00:00]} 34. b3 {[%emt 0:00:25]} axb3 {[%emt 0:00:00]} 35. axb3 {[%emt 0:00:01]} Qa1+ {[%emt 0:00:00]} (35... h5 $17 {...h4 is the strong threat.} 36. h3 Qg5) 36. Kf2 $11 {[%emt 0:00:14]} h5 {[%emt 0:00:00]} 37. Re7 {[%emt 0:02:15]} Qf6 {[%emt 0:00:00]} 38. Rxf7+ {[%emt 0:00:50]} Kxf7 {[%emt 0:00:00][%mdl 4096] Endgame KQB-KQN} 39. b4 {[%emt 0:00:38]} Qf4 {[%emt 0:00:00]} 40. h3 {[%emt 0:01:31]} Qh4 {[%emt 0:00:00]} 41. Qa7 {[%emt 0:02:13]} Ke6 {[%emt 0:00:14]} 42. Qe3+ {[%emt 0:00:14]} Kf7 {[%emt 0:00:26]} 43. Qa7 {[%emt 0:00:09]} Qe7 {[%emt 0:02:10]} 44. Ne2 {[%emt 0:00:13]} h4 {[%emt 0:00:00]} 45. Nd4 {[%emt 0:02:30]} Be8 {[%emt 0:00:20]} 46. Qa3 {[%emt 0:00:15]} Qe5 {[%emt 0:00:00]} 47. Qa7+ {[%emt 0:00:20]} Qe7 {[%emt 0:00:00]} 48. Qa3 {[%emt 0:00:04]} Bd7 {[%emt 0:00:00]} 49. Qc3 {[%emt 0:00:36]} Qe5 {[%emt 0:00:00]} 50. Qc5 {[%emt 0:00:20]} Qe7 {[%emt 0:00:06]} 51. Qc3 {[%emt 0:00:02]} Qd6 {[%emt 0:00:03]} 52. Ne2 {[%emt 0:00:22] Active counter play!} g5 {[%emt 0:00:18]} 53. Nd4 {[%emt 0:00:40]} Qg3+ {[%emt 0:00:04]} 54. Kf1 {[%emt 0:00:01]} Qd6 {[%emt 0:00:19]} 55. Nb3 {[%emt 0:00:23]} Kg6 {[%emt 0:00:08]} 56. Nd4 {[%emt 0:00:06]} Qe5 {[%emt 0:00:13]} 57. Kf2 {[%emt 0:00:15]} Kf7 {[%emt 0:00:07]} 58. Kf1 {[%emt 0:00:14]} Qf6 {[%emt 0:00:15]} 59. Kf2 {[%emt 0:00:29]} Kg7 {[%emt 0:00:06]} 60. Qe3 {[%emt 0:00:14]} Kf7 {[%emt 0:00:07]} 61. Qc3 {[%emt 0:00:02]} Qe5 {[%emt 0:00:04]} 62. Qc5 {[%emt 0:00:23]} Qe7 {[%emt 0:00:18]} 63. Qc3 {[%emt 0:00:02] White happily takes the draw.  Weighted Error Value: White=0.12 (very precise) /Black=0.12 (very precise)} 1/2-1/2

[Event "FIDE WTC Prel-B 2022"]
[Site "Jerusalem"]
[Date "2022.11.20"]
[Round "2.16"]
[White "Vakhidov, Jakhongir"]
[Black "Postny, Evgeny"]
[Result "1/2-1/2"]
[ECO "D10"]
[WhiteElo "2607"]
[BlackElo "2588"]
[Annotator "TA"]
[PlyCount "113"]
[EventDate "2022.11.20"]
[EventType "team-tourn"]
[EventCountry "ISR"]
[SourceTitle "playchess.com"]
[Source "ChessBase"]
[SourceQuality "1"]
[WhiteTeam "Uzbekistan"]
[BlackTeam "Israel"]
[WhiteTeamCountry "UZB"]
[BlackTeamCountry "ISR"]
[TimeControl "2700+10"]

{[%evp 12,113,21,20,20,14,30,13,41,26,70,42,46,50,47,18,29,25,20,0,32,23,19,19,46,8,82,98,101,90,90,65,70,53,139,140,147,110,107,112,108,95,110,73,48,69,150,77,67,79,109,37,37,37,62,18,18,18,18,8,18,0,0,0,0,0,0,0,0,-36,-8,-12,-10,-10,-8,-8,-8,-14,-8,-8,-8,-8,-8,-8,0,-17,-20,-20,-21,-23,-8,-8,-8,-8,-8,-8,-8,-8,-8,-8,0,0,0,0]} 1. c4 {[%emt 0:00:05]} c6 {[%emt 0:00:03]} 2. Nc3 {[%emt 0:00:05]} d5 {[%emt 0:00:02]} 3. d4 {[%emt 0:00:02]} Nf6 {[%emt 0:00:02]} 4. cxd5 {[%emt 0:00:02]} cxd5 {[%emt 0:00:03]} 5. Bf4 {[%emt 0:00:02]} Nc6 {[%emt 0:00:03]} 6. e3 {[%emt 0:00:02]} Bg4 {[%emt 0:00:15]} 7. f3 {[%emt 0:00:03]} Bd7 {[%emt 0:02:05] D10: Slav Defence: 3 cxd5 (without early Nf3) and 3 Nc3.} 8. g4 {[%emt 0:00:02]} e6 {[%emt 0:00:02]} 9. Bd3 {[%emt 0:00:03]} Bb4 {[%emt 0:00:16]} 10. Nge2 {[%emt 0:00:02]} Qe7 {[%emt 0:01:46]} 11. a3 {[%emt 0:15:49] [#]} (11. Kf2 {with more complications.} O-O 12. a3 Bxc3 13. Nxc3 Rac8 14. h4) 11... Bd6 $146 {[%emt 0:00:53]} ({Predecessor:} 11... e5 12. dxe5 Bxc3+ 13. Nxc3 Nxe5 14. Be2 Bc6 15. Qd4 Ned7 16. Rd1 O-O 17. h4 Nc5 {0-1 (36) Grigore,G (2491)-Svetushkin,D (2534) Mamaia 2019}) 12. Bxd6 {[%emt 0:01:15]} Qxd6 {[%emt 0:00:02]} 13. Qc2 {[%emt 0:00:07]} (13. Kf2 {seems wilder.} O-O-O 14. b4 Kb8 15. Qg1) 13... Rc8 {[%emt 0:02:07]} 14. Rd1 {[%emt 0:03:20]} g6 {[%emt 0:01:35]} 15. h3 {[%emt 0:03:48]} e5 {[%emt 0:07:11]} 16. dxe5 {[%emt 0:00:11]} Qxe5 {[%emt 0:00:46]} 17. Kf2 {[%emt 0:02:18]} O-O {[%emt 0:02:37]} 18. f4 {[%emt 0:00:24]} Qd6 {[%emt 0:03:37]} (18... Qe8 $11) 19. g5 $16 {[%emt 0:07:21]} Nh5 {[%emt 0:00:04] [#]} 20. Be4 $1 {[%emt 0:00:13][%mdl 512]} Ne7 {[%emt 0:01:15][%cal Oh7h6]} 21. Qb3 {[%emt 0:01:15][%cal Re4d5]} ({Wrong is} 21. Bxd5 $2 Nxd5 22. Qb3 (22. Rxd5 $2 Qxd5 23. Qxg6+ hxg6 $19) 22... Nxc3 $1 23. Rxd6 Ne4+ 24. Kg2 Nxd6 $19) 21... Be6 {[%emt 0:08:01]} 22. Nxd5 {[%emt 0:01:51]} Qc5 {[%emt 0:03:32]} (22... Nxd5 $14 23. Bxd5 Rc5 24. Bxe6 (24. Bxb7 Qc7 $11) 24... Qxe6) 23. Nxe7+ {[%emt 0:01:56]} Qxe7 {[%emt 0:00:02]} 24. Qxb7 {[%emt 0:02:09] White is more active.} Qxb7 {[%emt 0:00:12]} 25. Bxb7 {[%emt 0:00:02]} Rb8 {[%emt 0:00:07]} 26. Bf3 {[%emt 0:02:06]} Rxb2 {[%emt 0:00:02]} 27. Bxh5 {[%emt 0:01:13]} gxh5 {[%emt 0:00:02]} 28. Kf3 {[%emt 0:00:06]} Rb3 {[%emt 0:00:48] [#]} ({Better is} 28... Rc8 $14) 29. Ng3 {[%emt 0:01:32]} (29. f5 $142 $1 {[%cal Rf5e6]} Bc8 30. Nd4 Rxa3 31. Ra1) 29... h4 {[%emt 0:00:21]} 30. Nh5 {[%emt 0:00:04]} Rxa3 {[%emt 0:00:17] [#]} 31. Ra1 {[%emt 0:00:43]} ({White should play} 31. Rd6 $1 $16) 31... Rxa1 $1 $14 {[%emt 0:02:45]} ({Weaker is} 31... Bd5+ 32. Kg4 f5+ 33. Kxh4 Rxe3 34. Rhg1 $16) 32. Rxa1 {[%emt 0:00:01][%mdl 4096] Endgame KRB-KRN} Ra8 {[%emt 0:00:02]} 33. Ra5 {[%emt 0:00:03] Hoping for f5.} (33. Ra6 $5 {[%cal Re3e4]}) 33... Bxh3 {[%emt 0:00:31]} 34. f5 {[%emt 0:00:11]} Bf1 {[%emt 0:00:09]} 35. e4 {[%emt 0:01:34]} h3 {[%emt 0:00:53] Strongly threatening ...h2.} 36. Kg3 {[%emt 0:00:12]} h6 {[%emt 0:04:17]} 37. gxh6 {[%emt 0:00:20]} Kh7 {[%emt 0:00:04]} 38. Ra1 {[%emt 0:00:39]} Kxh6 {[%emt 0:01:11]} 39. Nf6 {[%emt 0:00:17]} Bg2 {[%emt 0:00:24]} 40. Ng4+ {[%emt 0:00:07]} Kg5 {[%emt 0:00:17]} (40... Kh5 $5 {[%cal Ra8g8]} 41. Nf6+ Kg5 42. Nh7+ Kh6 $15) 41. Nf2 {[%emt 0:00:07]} a5 {[%emt 0:00:26] ...a4 is the strong threat.} 42. Ra4 {[%emt 0:00:01]} Kf6 {[%emt 0:01:25]} 43. Nxh3 {[%emt 0:00:18]} Rg8+ {[%emt 0:01:08]} 44. Kh2 {[%emt 0:00:01]} Bf1 {[%emt 0:00:27]} 45. e5+ {[%emt 0:00:23]} Kxe5 {[%emt 0:00:09] Threatens to win with ...Rh8.} 46. Rxa5+ {[%emt 0:00:01]} Kf6 {[%emt 0:00:17] White must now prevent ...Rh8.} 47. Nf4 {[%emt 0:00:03]} Rg4 {[%emt 0:00:09]} 48. Nh5+ {[%emt 0:00:16]} Kg5 {[%emt 0:00:08]} 49. Ng3 {[%emt 0:00:06]} Bd3 {[%emt 0:00:07]} 50. Rd5 {[%emt 0:00:09]} Be4 {[%emt 0:00:09]} 51. Nxe4+ {[%emt 0:00:14] The position is equal.} Rxe4 $11 {[%emt 0:00:02] KR-KR} 52. Kg3 {[%emt 0:00:07]} f6 {[%emt 0:00:05]} 53. Ra5 {[%emt 0:00:08]} Rg4+ {[%emt 0:00:11]} 54. Kf3 {[%emt 0:00:02]} Rf4+ {[%emt 0:00:01]} 55. Kg3 $1 {[%emt 0:00:01]} Rxf5 {[%emt 0:00:02]} 56. Rxf5+ {[%emt 0:00:06][%mdl 64] Remove Defender} Kxf5 {[%emt 0:00:01]} 57. Kf3 {[%emt 0:00:01] Weighted Error Value: White=0.12 (very precise) /Black=0.14 (very precise)} 1/2-1/2